fUSD/lending_fUSD_20250301
["ID","MTS","AMOUNT","RATE_DAILY","PERIOD"]
[354895522,1740798635139,-1000.0,0.00028967,2]
[354895523,1740798635149,-150.0,0.00028971,2]
[354895524,1740798635158,-150.0,0.00028975,2]
[354895525,1740798635167,-150.0,0.00028975,2]
[354895526,1740798635177,-150.0,0.00028976,2]
[354895527,1740798635186,-150.0,0.00028978,2]
[354895528,1740798635197,-150.0,0.00028985,2]
[354895529,1740798635206,-219.6247744,0.00028999,2]
[354895530,1740798635215,-500.0,0.00028999,2]
[354895531,1740798635224,-500.0,0.00028999,2]
[354895532,1740798635233,-500.0,0.00028999,2]
[354895533,1740798635242,-288.47228138,0.00028999,2]
[354895534,1740798635252,-500.0,0.00028999,2]
[354895535,1740798635262,-296.0,0.00029,5]
[354895536,1740798635271,-4528.88692779,0.00029,2]
[354895537,1740798635283,-542.92,0.00029,2]
[354895538,1740798635294,-479.93,0.00029,2]
[354895539,1740798635306,-600.43827202,0.00029,2]
[354895540,1740798635317,-6891.26719767,0.00029,2]
[354895541,1740798635328,-573.51186156,0.00029,2]
[354895542,1740798636051,-36872.35070011,0.00029,2]
[354895543,1740798636064,-10732.23658103,0.00029,2]
[354895544,1740798636075,-5066.45878744,0.00029,2]
[354895545,1740798636086,-2973.52706946,0.00029,2]
[354895546,1740798638004,-2213.77391643,0.00029,2]
[354895547,1740798638016,-563737.19819239,0.00029,2]
[354895548,1740798638027,-215987.88162589,0.00029,2]
[354895549,1740798638110,-257.4455775,0.00029,2]
[354895550,1740798638163,-903.190002,0.00029,2]
[354895551,1740798638271,-5285.97197444,0.00029,2]
[354895704,1740798640161,-8971.56575124,0.00029,2]
[354895709,1740798640196,-400.0,0.00029,2]
[354895729,1740798640374,-357.38789991,0.00029,2]
[354895735,1740798640426,-1260.3,0.00029,2]
[354895753,1740798640585,-1032.75,0.00029,2]
[354895755,1740798640599,-1273.216,0.00029,2]
[354895764,1740798640671,-10633.9727256,0.00029,2]
[354896026,1740798643211,-251.16701539,0.0002086,2]
[354896028,1740798643220,-368.54053986,0.0002888,2]
[354896033,1740798643263,-2500.0,0.000288,2]
[354896035,1740798643272,-743.45946014,0.0002888,2]
[354896037,1740798643281,-42844.17653987,0.00029,2]
[354896137,1740798647093,-431.0,0.00029,5]
[354896138,1740798647102,-18724.50226546,0.00029,2]
[354896139,1740798795598,355.0,0.00025,30]
[354896140,1740799166658,5000.0,0.00012,2]
[354896142,1740799520357,2570.55138123,9e-05,2]
[354896143,1740799537203,21070.05107957,8e-05,2]
[354896144,1740799555708,30040.56786133,6.94e-05,2]
[354896145,1740799567063,159.01509464,8.776e-05,2]
[354896433,1740799688240,1225.18129959,0.00025,60]
[354896434,1740799690480,70907.77753599,9.9e-05,2]
[354896436,1740799697037,1000.0,0.000135,2]
[354896437,1740799706575,1998.6434892,0.00014,2]
[354896438,1740799708346,-220.85247496,0.000149,2]
[354896442,1740799711709,1718.17849362,9.828e-05,2]
[354896443,1740799714760,-323.9979581,0.000149,2]
[354896444,1740799718889,-153.73734208,0.00014999,2]
[354896445,1740799718921,-500.0,0.00014999,2]
[354896446,1740799718955,-601.93059696,0.00014999,2]
[354896447,1740799718990,-500.0,0.00014999,2]
[354896448,1740799723679,198.87992341,0.00010136,2]
[354896452,1740799742104,-1000.0,0.00015,2]
[354896453,1740799747893,-1000.0,0.00015,2]
[354896454,1740799751054,-1000.0,0.00015,2]
[354896455,1740799753622,-1000.0,0.00015,2]
[354896457,1740799755186,-1000.0,0.00015,2]
[354896458,1740799757365,-1000.0,0.00015,2]
[354896459,1740799758609,-1000.0,0.00015,2]
[354896465,1740799793606,-1334.0,0.000149,2]
[354896478,1740799832273,-698.4264,0.000149,2]
[354896479,1740799832282,-1081.8195219,0.000149,2]
[354896480,1740799832291,-229.60045867,0.00015,2]
[354896481,1740799832328,-3091.54,0.00015,2]
[354896482,1740799832385,-509.11642308,0.00015,2]
[354896483,1740799832396,-416.81688797,0.00015,2]
[354896484,1740799832440,-662.73596686,0.00015,2]
[354896485,1740799832497,-1329.39881909,0.00015,2]
[354896486,1740799832555,-55900.76192269,0.00015,2]
[354896487,1740799832567,-1050.11323801,0.00015,2]
[354896519,1740799838686,-4595.3446658,0.00015,2]
[354896520,1740799838698,-324.5850843,0.00015,2]
[354896607,1740799843296,-1771.35647163,0.00015,2]
[354896610,1740799844419,-673.82,0.00015,2]
[354896611,1740799844431,-301.616,0.00015,2]
[354896617,1740799846371,-8432.99185683,0.00015,2]
[354896618,1740799846482,-20142.23220346,0.00015,2]
[354896628,1740800112362,-1206.0,0.000149,2]
[354896629,1740800112387,-908.20561369,0.000149,2]
[354896630,1740800112416,-45650.79438631,0.00015,2]
[354896632,1740800310048,2337.257,0.000147,2]
[354896633,1740800310170,164.33070391,0.000147,2]
[354896634,1740800563325,390.25003327,0.00014707,2]
[354896650,1740801031599,-2185.5286,0.000149,2]
[354896651,1740801031610,-258.1168,0.000149,2]
[354896652,1740801031620,-8982.7507,0.000149,2]
[354896653,1740801031629,-211.44297786,0.000149,2]
[354896654,1740801031639,-20824.46860057,0.000149,2]
[354896655,1740801031650,-1517.7204,0.000149,2]
[354896656,1740801031659,-817.38505233,0.000149,2]
[354896657,1740801031668,-1021.06230469,0.000149,2]
[354896658,1740801031680,-51914.31005276,0.00015,2]
[354896682,1740801039580,-1730908.86439339,0.00015,2]
[354896683,1740801039590,-301001.82386416,0.00015,2]
[354896684,1740801039600,-170.00551,0.00015,2]
[354896685,1740801039611,-150.0,0.0001639,2]
[354896686,1740801039621,-817.38505229,0.00017789,2]
[354896687,1740801039630,-1021.06230469,0.00017789,2]
[354896688,1740801039640,-211.44297784,0.000199,2]
[354896689,1740801039651,-12487.26593575,0.0002,4]
[354896690,1740801039660,-170.00551,0.0002,2]
[354896691,1740801039669,-817.38505229,0.00020678,2]
[354896692,1740801039679,-1021.06230469,0.00020678,2]
[354896693,1740801039689,-217.4591896,0.000209,2]
[354896694,1740801039699,-250.0,0.00021,2]
[354896695,1740801039708,-176.62,0.00021001,2]
[354896696,1740801039718,-1796.8452317,0.0002152,2]
[354896697,1740801039727,-217.45918954,0.000219,3]
[354896698,1740801039736,-817.38505229,0.00023567,2]
[354896699,1740801039746,-1021.06230469,0.00023567,2]
[354896700,1740801039756,-673.51,0.00024434,2]
[354896701,1740801039765,-211.44297784,0.000249,2]
[354896702,1740801039775,-152.0,0.00024974,3]
[354896703,1740801039784,-800.0,0.00025,2]
[354896704,1740801039794,-200.0,0.00025,2]
[354896705,1740801039803,-170.00551,0.00025,2]
[354896706,1740801039812,-3926.0,0.0002588,2]
[354896707,1740801039822,-150.0,0.0002588,2]
[354896708,1740801039831,-1120.248,0.0002588,2]
[354896709,1740801039840,-900.0,0.00026,3]
[354896710,1740801039850,-152.0,0.00026131,4]
[354896711,1740801039860,-1892.64,0.00026133,2]
[354896712,1740801039869,-168.32,0.00026139,2]
[354896713,1740801039878,-1387.36,0.00026181,2]
[354896714,1740801039888,-1000.0,0.00026195,2]
[354896715,1740801039897,-23900.0,0.00026221,2]
[354896716,1740801039907,-180.82,0.00026234,2]
[354896717,1740801039916,-157.79,0.00026363,2]
[354896718,1740801039926,-467.78,0.00026436,2]
[354896719,1740801039935,-817.38505229,0.00026456,2]
[354896720,1740801039944,-1021.06230469,0.00026456,2]
[354896721,1740801039954,-150.0,0.00026529,7]
[354896722,1740801039964,-3736.6,0.00026564,2]
[354896723,1740801039974,-7711.52,0.00026565,2]
[354896724,1740801039983,-250.0,0.00026587,2]
[354896725,1740801039993,-71112.1,0.00026625,2]
[354896726,1740801040002,-673.51,0.00026698,2]
[354896727,1740801040012,-3605.77,0.00026726,2]
[354896728,1740801040022,-200.0,0.00026755,2]
[354896729,1740801040032,-217.45918954,0.000269,4]
[354896730,1740801040041,-900.0,0.00027,4]
[354896731,1740801040050,-152.0,0.00027287,5]
[354896732,1740801040060,-168.32,0.00027446,2]
[354896733,1740801040070,-169.28,0.00027655,2]
[354896734,1740801040079,-205.08,0.00027972,120]
[354896735,1740801040090,-171.1125267,0.00028419,4]
[354896736,1740801040099,-152.0,0.00028444,6]
[354896737,1740801040109,-724.34,0.00028605,2]
[354896738,1740801040119,-150.0,0.000287,2]
[354896739,1740801040128,-150.0,0.00028705,2]
[354896740,1740801040137,-150.0,0.00028718,2]
[354896741,1740801040147,-1000.0,0.00028731,2]
[354896742,1740801040157,-150.0,0.00028743,2]
[354896743,1740801040166,-168.32,0.00028753,2]
[354896744,1740801040176,-150.0,0.00028754,2]
[354896745,1740801040185,-724.34,0.00028756,2]
[354896746,1740801040195,-150.0,0.00028759,2]
[354896747,1740801040204,-150.0,0.00028773,2]
[354896748,1740801040214,-150.0,0.00028774,2]
[354896749,1740801040223,-150.0,0.00028776,2]
[354896750,1740801040234,-150.0,0.00028782,2]
[354896751,1740801040244,-1000.0,0.00028797,2]
[354896752,1740801040253,-1000.0,0.00028799,2]
[354896753,1740801040263,-1000.0,0.00028812,2]
[354896754,1740801040272,-150.0,0.0002882,2]
[354896755,1740801040282,-150.0,0.00028822,2]
[354896756,1740801040291,-150.0,0.00028823,2]
[354896757,1740801040300,-150.0,0.00028826,2]
[354896758,1740801040310,-150.0,0.00028831,2]
[354896759,1740801040323,-150.0,0.00028833,2]
[354896760,1740801040332,-150.0,0.00028841,2]
[354896761,1740801040342,-150.0,0.00028845,2]
[354896762,1740801040351,-150.0,0.00028854,2]
[354896763,1740801040360,-150.0,0.00028862,2]
[354896764,1740801040369,-150.0,0.00028868,2]
[354896765,1740801040379,-2115.172,0.0002888,2]
[354896766,1740801040388,-1112.0,0.0002888,2]
[354896767,1740801040398,-150.0,0.00028881,2]
[354896768,1740801040407,-150.0,0.0002889,2]
[354896769,1740801040416,-150.0,0.0002889,2]
[354896770,1740801040426,-150.0,0.00028891,2]
[354896771,1740801040435,-1000.0,0.00028891,2]
[354896772,1740801040444,-243.91578335,0.00028899,2]
[354896773,1740801040453,-195.98649052,0.000289,2]
[354896774,1740801040463,-151.431606,0.000289,7]
[354896775,1740801040472,-151.0,0.000289,7]
[354896776,1740801040481,-189.51988204,0.000289,2]
[354896777,1740801040491,-535.16255184,0.000289,2]
[354896778,1740801040500,-724.34,0.00028906,2]
[354896779,1740801040510,-1038.56799719,0.00028911,2]
[354896780,1740801040519,-150.0,0.00028913,2]
[354896781,1740801040528,-150.0,0.0002892,2]
[354896782,1740801040537,-150.0,0.0002893,2]
[354896783,1740801040546,-150.0,0.00028931,2]
[354896784,1740801040555,-1000.0,0.00028931,2]
[354896785,1740801040564,-1000.0,0.00028945,2]
[354896786,1740801040575,-150.0,0.00028947,2]
[354896787,1740801040586,-673.51,0.00028961,2]
[354896788,1740801040596,-150.0,0.00028967,2]
[354896789,1740801040606,-151.02629956,0.00028973,5]
[354896790,1740801040615,-150.0,0.00028976,2]
[354896791,1740801040627,-11906.866447,0.00028997,2]
[354896792,1740801040637,-1859372.30199543,0.00029,2]
[354896793,1740801040647,-921.38491556,0.00029,120]
[354896794,1740801040657,-1986.68135249,0.00029,2]
[354896795,1740801040667,-151.0,0.00029,7]
[354896796,1740801040677,-151.0,0.00029,7]
[354896797,1740801040686,-151.0,0.00029,7]
[354896798,1740801040695,-1855.539188,0.00029,7]
[354896799,1740801040704,-3948.6460454,0.00029017,2]
[354896800,1740801040713,-724.34,0.00029057,2]
[354896801,1740801040723,-153.77,0.00029138,2]
[354896802,1740801040732,-724.34,0.00029207,2]
[354896803,1740801040742,-153.77,0.00029322,2]
[354896804,1740801040751,-817.38505229,0.00029344,2]
[354896805,1740801040760,-1021.06230469,0.00029344,2]
[354896806,1740801040769,-724.34,0.00029358,2]
[354896807,1740801040779,-274.9,0.000294,2]
[354896808,1740801040788,-1000.0,0.00029469,2]
[354896809,1740801040797,-153.77,0.00029506,2]
[354896810,1740801040806,-724.34,0.00029508,2]
[354896811,1740801040815,-152.0,0.000296,7]
[354896812,1740801040825,-724.34,0.00029659,2]
[354896813,1740801040834,-153.77,0.00029691,2]
[354896814,1740801040843,-724.34,0.0002981,2]
[354896815,1740801040853,-153.77,0.00029875,2]
[354896816,1740801040862,-211.44297784,0.000299,2]
[354896817,1740801040872,-724.34,0.0002996,2]
[354896818,1740801040882,-172.53318881,0.0003,30]
[354896819,1740801040892,-215.0,0.0003,2]
[354896820,1740801040901,-170.00551,0.0003,2]
[354896821,1740801040910,-153.77,0.0003006,2]
[354896822,1740801040919,-168.32,0.0003006,2]
[354896823,1740801040929,-450.0,0.00030096,2]
[354896824,1740801040938,-724.34,0.00030111,2]
[354896825,1740801040947,-153.77,0.00030244,2]
[354896826,1740801040955,-724.34,0.00030261,2]
[354896827,1740801040965,-724.34,0.00030412,2]
[354896828,1740801040974,-153.77,0.00030428,2]
[354896829,1740801040984,-150.0,0.0003048,2]
[354896830,1740801040994,-150.0,0.0003048,2]
[354896831,1740801041004,-724.34,0.00030562,2]
[354896832,1740801041015,-470.0,0.00030613,30]
[354896833,1740801041024,-724.34,0.00030713,2]
[354896834,1740801041033,-152.0,0.00030757,8]
[354896835,1740801041042,-724.34,0.00030863,2]
[354896836,1740801041051,-1321.07441021,0.00031014,3]
[354896837,1740801041060,-724.34,0.00031014,2]
[354896838,1740801041069,-488.0,0.0003107,2]
[354896839,1740801041078,-724.34,0.00031164,2]
[354896840,1740801041087,-673.51,0.00031225,2]
[354896841,1740801041096,-724.34,0.00031315,2]
[354896842,1740801041105,-168.32,0.00031367,2]
[354896843,1740801041114,-500.0,0.00031465,2]
[354896844,1740801041339,-500.0,0.00031465,2]
[354896845,1740801041349,-500.0,0.00031465,2]
[354896846,1740801041358,-500.0,0.00031465,2]
[354896847,1740801041368,-500.0,0.00031465,2]
[354896848,1740801041377,-500.0,0.00031465,2]
[354896849,1740801041386,-500.0,0.00031465,2]
[354896850,1740801041395,-500.0,0.00031465,2]
[354896851,1740801041404,-500.0,0.00031465,2]
[354896852,1740801041413,-500.0,0.00031465,2]
[354896853,1740801041423,-500.0,0.00031465,2]
[354896854,1740801041432,-500.0,0.00031465,2]
[354896855,1740801041441,-500.0,0.00031465,2]
[354896856,1740801041450,-500.0,0.00031465,2]
[354896857,1740801041460,-500.0,0.00031465,2]
[354896858,1740801041469,-500.0,0.00031465,2]
[354896859,1740801041480,-500.0,0.00031465,2]
[354896860,1740801041489,-500.0,0.00031465,2]
[354896861,1740801041498,-500.0,0.00031465,2]
[354896862,1740801041507,-500.0,0.00031465,2]
[354896863,1740801041515,-500.0,0.00031465,2]
[354896864,1740801041525,-500.0,0.00031465,2]
[354896865,1740801041534,-500.0,0.00031465,2]
[354896866,1740801041543,-500.0,0.00031465,2]
[354896867,1740801041552,-500.0,0.00031465,2]
[354896868,1740801041562,-500.0,0.00031465,2]
[354896869,1740801041571,-500.0,0.00031465,2]
[354896870,1740801041585,-500.0,0.00031465,2]
[354896871,1740801041595,-500.0,0.00031465,2]
[354896872,1740801041604,-500.0,0.00031465,2]
[354896873,1740801041615,-560.0,0.00031465,2]
[354896874,1740801041626,-724.34,0.00031466,2]
[354896875,1740801041635,-200.0,0.00031854,2]
[354896876,1740801041645,-217.45918954,0.000319,6]
[354896877,1740801041658,-152.0,0.00031913,9]
[354896878,1740801041668,-200.0,0.0003198,60]
[354896879,1740801041678,-300.0,0.0003198,2]
[354896880,1740801041687,-156.16,0.00031982,2]
[354896881,1740801041696,-200.0,0.00031993,2]
[354896882,1740801041706,-10000.0,0.00032014,60]
[354896883,1740801041715,-333.53981974,0.00032014,2]
[354896884,1740801041724,-211.33035775,0.00032014,30]
[354896885,1740801041736,-267.39282324,0.00032014,30]
[354896886,1740801041745,-180.43570921,0.00032014,30]
[354896887,1740801041754,-190.12548008,0.00032014,7]
[354896888,1740801041764,-15000.0,0.00032014,30]
[354896889,1740801041774,-12323.11119115,0.00032014,30]
[354896890,1740801041783,-169.28,0.00032219,2]
[354896891,1740801041792,-817.38505229,0.00032233,2]
[354896892,1740801041801,-1021.06230469,0.00032233,2]
[354896893,1740801041810,-488.0,0.0003249,2]
[354896894,1740801041819,-151.15,0.00032645,2]
[354896895,1740801041828,-1000.0,0.00032744,2]
[354896896,1740801041837,-150.0,0.00032877,2]
[354896897,1740801041846,-2849.79,0.000329,14]
[354896898,1740801041855,-159.0,0.0003298,15]
[354896899,1740801041864,-152.0,0.0003307,10]
[354896900,1740801041873,-150.0,0.0003348,2]
[354896901,1740801041882,-150.0,0.0003348,2]
[354896902,1740801041891,-673.51,0.00033489,2]
[354896903,1740801041900,-824.72,0.000336,7]
[354896904,1740801041909,-150.0,0.00033742,2]
[354896905,1740801041918,-488.0,0.000339,2]
[354896906,1740801041927,-152.0,0.00034226,11]
[354896907,1740801041936,-150.0,0.00034607,2]
[354896908,1740801041945,-211.44297784,0.000349,2]
[354896909,1740801041954,-360.0,0.00034998,2]
[354896910,1740801041963,-3795.9422641,0.00034999,2]
[354896911,1740801041972,-170.00551,0.00035,2]
[354896912,1740801041984,-817.38505229,0.00035122,2]
[354896913,1740801041994,-1021.06230469,0.00035122,2]
[354896914,1740801042003,-488.0,0.0003531,2]
[354896915,1740801042012,-152.0,0.00035383,12]
[354896916,1740801042022,-9999.99,0.00035455,2]
[354896917,1740801042031,-293.69,0.00035455,2]
[354896918,1740801042039,-150.99,0.00035455,30]
[354896919,1740801042048,-299.99,0.00035455,30]
[354896920,1740801042058,-999.99,0.00035455,2]
[354896921,1740801042067,-3498.87,0.00035455,2]
[354896922,1740801042076,-2193.35,0.00035455,2]
[354896923,1740801042085,-150.99,0.00035455,2]
[354896924,1740801042094,-9999.99,0.00035455,2]
[354896925,1740801042103,-1117.95,0.00035455,2]
[354896926,1740801042112,-150.0,0.00035472,2]
[354896927,1740801042122,-2849.79,0.000356,14]
[354896928,1740801042131,-673.51,0.00035753,2]
[354896929,1740801042140,-344.31,0.00035759,2]
[354896930,1740801042149,-150.0,0.000358,25]
[354896931,1740801042158,-1000.0,0.00036018,2]
[354896933,1740801042168,-150.0,0.00036337,2]
[354896934,1740801042177,-152.0,0.00036539,13]
[354896935,1740801042186,-247.68691224,0.00036539,5]
[354896936,1740801042196,-152.0,0.00036539,5]
[354896938,1740801042206,-488.0,0.0003672,2]
[354896940,1740801042216,-217.45918954,0.000369,7]
[354896941,1740801042225,-189.51988204,0.000369,2]
[354896942,1740801042235,-535.16255184,0.000369,2]
[354896943,1740801042245,-467.78,0.0003701,2]
[354896945,1740801042254,-1855.539188,0.0003701,7]
[354896946,1740801042263,-150.0,0.00037052,120]
[354896947,1740801042273,-160.99239209,0.000372,103]
[354896948,1740801042282,-150.0,0.00037203,2]
[354896950,1740801042291,-151.0,0.00037396,7]
[354896952,1740801042300,-151.0,0.00037396,7]
[354896954,1740801042310,-150.38549019,0.00037396,14]
[354896955,1740801042320,-180.82,0.00037467,2]
[354896956,1740801042329,-2849.79,0.000375,14]
[354896957,1740801042338,-151.0,0.000375,7]
[354896958,1740801042347,-617.42243842,0.00038,120]
[354896959,1740801042356,-314.0,0.00038,120]
[354896960,1740801042365,-817.38505229,0.00038011,2]
[354896961,1740801042375,-1021.06230469,0.00038011,2]
[354896962,1740801042384,-673.51,0.00038017,2]
[354896963,1740801042395,-150.0,0.00038068,2]
[354896964,1740801042405,-488.0,0.0003813,2]
[354896965,1740801042415,-2337.257,0.00038525,52]
[354896966,1740801042425,-150.0,0.00038743,120]
[354896968,1740801042435,-150.0,0.00038933,2]
[354896970,1740801042444,-1166.89779147,0.00039,120]
[354896971,1740801042454,-1000.0,0.00039293,2]
[354896972,1740801042463,-172.609699,0.00039384,2]
[354896973,1740801042472,-170.96,0.00039452,2]
[354896974,1740801042484,-610.57,0.00039452,2]
[354896975,1740801042494,-157.79,0.00039545,2]
[354896976,1740801042503,-488.0,0.0003955,2]
[354896978,1740801042512,-150.0,0.00039798,2]
[354896979,1740801042521,-2849.79,0.000399,14]
[354896980,1740801042531,-211.44297784,0.000399,2]
[354896981,1740801042540,-724.40939098,0.0004,120]
[354896982,1740801042549,-724.18,0.0004,120]
[354896983,1740801042559,-724.18,0.0004,120]
[354896984,1740801042568,-617.42243842,0.0004,120]
[354896985,1740801042579,-500.0,0.0004,120]
[354896986,1740801042590,-5000.0,0.0004,30]
[354896987,1740801042602,-200.0,0.0004,30]
[354896988,1740801042611,-967.89200457,0.0004,8]
[354896989,1740801042628,-1088.31429157,0.0004,8]
[354896990,1740801042639,-2439.59275319,0.0004,8]
[354896991,1740801042719,-0.12505712,0.0004,8]
[354896992,1740801042748,-1266.73238712,0.0004,8]
[354896993,1740801042760,-468.82452291,0.0004,8]
[354896994,1740801042770,-219.64284541,0.0004,8]
[354896995,1740801042780,-150.0,0.00040093,120]
[354896996,1740801042790,-673.51,0.00040281,2]
[354896997,1740801042799,-150.0,0.00040524,14]
[354896998,1740801042808,-150.0,0.00040663,2]
[354896999,1740801042818,-817.38505229,0.000409,15]
[354897000,1740801042827,-1021.06230469,0.000409,15]
[354897001,1740801042836,-160.99239209,0.000409,120]
[354897002,1740801042845,-488.0,0.0004096,2]
[354897003,1740801042855,-158.0,0.00040972,120]
[354897004,1740801042864,-3578.9443813,0.00040972,2]
[354897005,1740801042873,-10792.0568924,0.00040972,2]
[354897006,1740801042882,-724.18,0.00041,120]
[354897007,1740801042892,-446460.70275198,0.00041,4]
[354897017,1740801043976,-9268.8868907,0.00041,4]
[354897023,1740801046272,-1028393.58878322,0.00041,4]
[354897038,1740801806665,433.66286559,0.00032005,120]
[354897058,1740802231759,-301.09129853,0.000149,2]
[354897059,1740802231772,-613.32961624,0.000149,2]
[354897060,1740802231783,-258.32938523,0.000149,2]
[354897061,1740802231792,-183.20893322,0.000149,2]
[354897062,1740802231801,-150.0,0.00016389,2]
[354897063,1740802231811,-450.0,0.0001639,2]
[354897064,1740802231821,-150.0,0.0001639,2]
[354897065,1740802231831,-150.0,0.0001639,2]
[354897066,1740802231840,-1546.26570609,0.000216,2]
[354897067,1740802231867,-358.73429391,0.000216,2]
[354897068,1740802231876,-286.564,0.00028477,2]
[354897069,1740802231885,-55.81670609,0.000324,2]
[354897070,1740802231897,-109.12329391,0.000324,2]
[354897071,1740802231906,-494.83,0.00034,7]
[354897072,1740802231916,-437.78,0.00037013,2]
[354897073,1740802231926,-300.0,0.00037199,2]
[354897074,1740802231939,-824.95,0.000372,2]
[354897075,1740802231950,-238.78,0.000372,2]
[354897076,1740802231960,-944.32,0.000372,2]
[354897077,1740802231971,-150.99,0.000372,2]
[354897078,1740802231981,-433.66286559,0.00038,120]
[354897079,1740802231991,-387.0,0.00038,2]
[354897080,1740802232000,-153.77,0.00038465,2]
[354897081,1740802232011,-180.82,0.00038546,2]
[354897082,1740802232020,-387.0,0.0003863,14]
[354897083,1740802232029,-1405.643,0.000389,53]
[354897084,1740802232039,-170.576,0.000389,53]
[354897085,1740802232048,-208.52080605,0.000389,8]
[354897086,1740802232058,-23900.0,0.00038916,2]
[354897087,1740802232067,-200.0,0.00038918,2]
[354897088,1740802232077,-500.0,0.00038918,2]
[354897089,1740802232087,-1000.0,0.00038932,2]
[354897090,1740802232096,-152.46,0.00038949,2]
[354897091,1740802232106,-437.78,0.00039276,2]
[354897092,1740802232115,-150.0,0.00039287,7]
[354897093,1740802232124,-250.0,0.00039825,2]
[354897094,1740802232133,-433.66286559,0.0004,120]
[354897095,1740802232143,-249.23056142,0.0004,120]
[354897096,1740802232154,-500.0,0.0004,120]
[354897098,1740802232163,-724.18,0.0004,120]
[354897100,1740802232172,-1000.0,0.0004,3]
[354897102,1740802232183,-152.46,0.00040112,2]
[354897104,1740802232193,-409.5457188,0.00040152,4]
[354897106,1740802232202,-387.0,0.00040274,14]
[354897108,1740802232211,-2600.49136501,0.0004068,110]
[354897110,1740802232221,-208.52080601,0.000407,8]
[354897112,1740802232230,-150.0,0.0004073,2]
[354897114,1740802232239,-150.0,0.00040744,2]
[354897116,1740802232249,-150.0,0.00040749,2]
[354897118,1740802232259,-150.0,0.00040774,2]
[354897120,1740802232269,-155.08570308,0.00040791,7]
[354897122,1740802232278,-310.45303871,0.00040797,2]
[354897124,1740802232288,-165.22719323,0.000408,15]
[354897126,1740802232297,-9480.40161681,0.000408,2]
[354897129,1740802232318,-592.3418551,0.000408,2]
[354897132,1740802232330,-842.605,0.000408,2]
[354897134,1740802232342,-1527.45052351,0.000408,2]
[354897137,1740802232361,-9503.35670458,0.000408,2]
[354897139,1740802232371,-615.6406,0.000408,2]
[354897141,1740802232380,-155.7344,0.000408,2]
[354897143,1740802232390,-150.0,0.00040802,2]
[354897145,1740802232399,-150.0,0.00040817,2]
[354897147,1740802232408,-150.0,0.00040828,2]
[354897149,1740802232417,-150.0,0.00040854,2]
[354897151,1740802232427,-150.0,0.00040862,2]
[354897154,1740802232436,-1000.0,0.00040883,7]
[354897156,1740802232445,-150.0,0.00040884,2]
[354897158,1740802232454,-150.0,0.00040889,2]
[354897160,1740802232464,-150.0,0.00040898,2]
[354897162,1740802232472,-223.5287,0.00040899,2]
[354897164,1740802232482,-490.12772991,0.000409,2]
[354897166,1740802232494,-255.97559429,0.000409,2]
[354897168,1740802232505,-14764.8994758,0.000409,2]
[354897170,1740802232514,-500.0,0.000409,2]
[354897172,1740802232523,-85892.3128,0.000409,2]
[354897174,1740802232533,-1000.0,0.000409,2]
[354897176,1740802232544,-221.0,0.000409,2]
[354897178,1740802232553,-211.44297784,0.000409,2]
[354897180,1740802232562,-1233.0027829,0.000409,13]